bitfinex-derivatives/quotes_BTCF0:USTF0_20210111
["timestamp","ask_amount","ask_price","bid_price","bid_amount"]
[1610380511467,0.38862,32165.0,32164.0,0.13632608]
[1610380512067,0.2896,32165.0,32164.0,0.13632608]
[1610380513069,0.2896,32165.0,32156.0,0.07203]
[1610380513269,0.00368446,32165.0,32156.0,0.07203]
[1610380513468,0.08696,32181.0,32156.0,0.07203]
[1610380513669,0.08696,32181.0,32164.0,0.13632608]
[1610380514070,5.0747,32206.0,32164.0,0.13632608]
[1610380514270,5.0747,32206.0,32163.0,0.10967]
[1610380514471,5.18182,32206.0,32163.0,0.10967]
[1610380515474,5.0747,32206.0,32163.0,0.10967]
[1610380515672,5.0747,32206.0,32205.0,0.13632608]
[1610380516475,5.0747,32206.0,32170.0,0.08775]
[1610380516677,5.17369,32206.0,32170.0,0.08775]
[1610380517475,0.09899,32206.0,32170.0,0.08775]
[1610380517675,0.09899,32206.0,32167.0,4.8957]
[1610380518077,0.09899,32206.0,32205.0,0.13632608]
[1610380518875,0.09899,32206.0,32179.0,0.10929]
[1610380520075,0.09899,32206.0,32205.0,0.13632608]
[1610380520679,0.09899,32206.0,32167.0,4.8957]
[1610380521677,0.08616,32220.0,32167.0,4.8957]
[1610380521876,0.07656,32206.0,32167.0,4.8957]
[1610380522278,0.07656,32206.0,32183.0,0.13632608]
[1610380524278,0.07656,32206.0,32195.0,0.13632608]
[1610380524681,0.07656,32206.0,32167.0,4.8957]
[1610380526282,0.13632608,32168.0,32167.0,4.8957]
[1610380526483,0.21556608,32168.0,32167.0,4.8957]
[1610380526883,0.07924,32168.0,32052.0,2.09279032]
[1610380527097,0.07924,32168.0,32038.0,0.47669922]
[1610380527490,0.07924,32168.0,32030.0,2.09493304]
[1610380527686,0.291,32167.0,32030.0,2.09493304]
[1610380527909,0.291,32167.0,32024.0,2.09514334]
[1610380528114,4.4237,32161.0,32047.0,3.7125]
[1610380528313,4.52179,32161.0,32092.0,0.13632608]
[1610380528485,4.52179,32161.0,32047.0,3.7125]
[1610380528486,1.5,32160.0,32084.0,0.11167]
[1610380529285,1.5933,32160.0,32084.0,0.11167]
[1610380529486,1.5933,32160.0,32047.0,3.7125]
[1610380530287,0.0933,32160.0,32058.0,0.03]
[1610380530889,0.0933,32160.0,32091.0,0.13632608]
[1610380531189,0.0933,32160.0,32060.0,0.08539]
[1610380531389,1.5933,32160.0,32060.0,0.08539]
[1610380531790,4.7014,32118.0,32060.0,0.08539]
[1610380531990,6.26991,32118.0,32060.0,0.08539]
[1610380532396,6.26991,32118.0,32058.0,0.03]
[1610380532996,4.76991,32118.0,32058.0,0.03]
[1610380533192,0.13632608,32066.0,32062.0,0.13632608]
[1610380533399,0.10914,32066.0,32058.0,0.03]
[1610380535396,0.13632608,32059.0,32041.0,3.7945]
[1610380536595,0.10914,32066.0,32041.0,3.7945]
[1610380537398,0.7101,32065.0,32009.0,0.11401]
[1610380537595,0.10914,32066.0,32059.0,0.01]
[1610380537795,0.13632608,32060.0,32013.0,0.13632608]
[1610380538200,0.13632608,32060.0,32002.0,0.09251]
[1610380539001,0.13632608,32060.0,31931.0,2.13475483]
[1610380539398,1.5824,32059.0,31924.0,2.13689218]
[1610380539598,1.6547,32059.0,31924.0,2.13689218]
[1610380539798,1.6547,32059.0,31920.0,2.13707929]
[1610380540098,1.6547,32059.0,31918.0,2.13757421]
[1610380540500,1.5939,32058.0,31918.0,2.13757421]
[1610380540700,0.13632608,31982.0,31973.0,0.13632608]
[1610380540900,0.21411608,31982.0,31973.0,0.13632608]
[1610380541303,0.07779,31982.0,31916.0,2.13947585]
[1610380541500,0.07779,31982.0,31914.0,2.13976796]
[1610380541701,0.07779,31982.0,31910.0,2.14128978]
[1610380542501,0.07779,31982.0,31901.0,2.14237606]
[1610380542902,0.07779,31982.0,31900.0,2.14297157]
[1610380543303,0.06839,31982.0,31898.0,2.14306707]
[1610380543502,0.13632608,31950.0,31898.0,2.14306707]
[1610380543703,0.21239608,31950.0,31897.0,2.14322271]
[1610380544006,0.07607,31950.0,31887.0,2.14377085]
[1610380544204,0.07607,31950.0,31883.0,2.14423795]
[1610380544605,0.07607,31950.0,31877.0,2.14459452]
[1610380545005,0.07607,31950.0,31864.0,2.14479389]
[1610380545405,0.07607,31950.0,31851.0,2.14247409]
[1610380545606,0.07607,31950.0,31890.0,0.13632608]
[1610380545806,0.07607,31950.0,31890.0,0.22518608]
[1610380546007,0.07607,31950.0,31890.0,0.08886]
[1610380546808,0.07607,31950.0,31865.0,0.07384]
[1610380546809,3.9477,31917.0,31865.0,0.07384]
[1610380547007,4.05827,31917.0,31865.0,0.07384]
[1610380547308,0.11057,31917.0,31865.0,0.07384]
[1610380547508,4.668,31894.0,31865.0,0.07384]
[1610380547708,4.75219,31894.0,31868.0,0.13632608]
[1610380547908,0.0941,31893.0,31853.0,0.07681]
[1610380548909,0.0941,31893.0,31821.0,4.4281]
[1610380551410,4.75219,31894.0,31821.0,4.4281]
[1610380551613,4.75219,31894.0,31865.0,0.13632608]
[1610380552523,4.75219,31894.0,31865.0,0.107]
[1610380552713,4.668,31894.0,31865.0,0.107]
[1610380553726,4.668,31894.0,31877.0,0.13632608]
[1610380553921,4.668,31894.0,31856.0,0.11341]
[1610380554117,4.77206,31894.0,31856.0,0.11341]
[1610380555514,4.668,31894.0,31856.0,0.11341]
[1610380555935,4.668,31894.0,31893.0,0.13632608]
[1610380556330,0.5868,31894.0,31873.0,0.07087]
[1610380556518,0.67629,31894.0,31873.0,0.07087]
[1610380557327,0.67629,31894.0,31856.0,0.11341]
[1610380557517,0.67629,31894.0,31845.0,0.0823]
[1610380557717,0.67629,31894.0,31878.0,0.13632608]
[1610380557918,0.67629,31894.0,31867.0,0.07216]
[1610380559321,0.5868,31894.0,31867.0,0.07216]
[1610380559919,1.0,31907.0,31867.0,0.07216]
[1610380560119,1.0,31907.0,31906.0,0.13632608]
[1610380560318,0.6541,31907.0,31906.0,0.22457608]
[1610380560719,4.0142,31940.0,31906.0,1.22457608]
[1610380562220,0.13632608,31933.0,31915.0,0.13632608]
[1610380562421,0.13632608,31933.0,31915.0,0.22891608]
[1610380563022,0.00369961,31916.0,31915.0,0.09259]
[1610380563623,4.0142,31940.0,31915.0,0.09259]
[1610380564225,4.0142,31940.0,31930.0,0.13632608]
[1610380564427,4.0142,31940.0,31930.0,0.24787608]
[1610380564826,0.13632608,31946.0,31930.0,0.24787608]
[1610380565025,0.13632608,31946.0,31939.0,1.0]
[1610380565627,1.0,31975.0,31939.0,1.11072]
[1610380565827,4.3071,31962.0,31939.0,1.11072]
[1610380566228,0.13632608,31949.0,31939.0,1.11072]
[1610380566428,0.22835608,31949.0,31939.0,1.11072]
[1610380566630,0.22835608,31949.0,31939.0,1.0]
[1610380567032,0.22835608,31949.0,31915.0,0.09259]
[1610380567232,0.09203,31949.0,31915.0,0.09259]
[1610380567630,4.3071,31962.0,31906.0,1.08825]
[1610380568229,4.3071,31962.0,31948.0,0.13632608]
[1610380569329,4.3071,31962.0,31935.0,0.08405]
[1610380570329,4.3071,31962.0,31918.0,1.0]
[1610380570729,0.13632608,31926.0,31918.0,1.13632608]
[1610380570934,0.13632608,31926.0,31906.0,0.08825]
[1610380571131,0.22037608,31926.0,31894.0,5.0953]
[1610380571733,0.08405,31926.0,31894.0,5.0953]
[1610380573133,0.10777,31935.0,31894.0,5.0953]
[1610380573333,0.10777,31935.0,31894.0,5.18133]
[1610380575033,0.10777,31935.0,31894.0,0.08603]
[1610380575833,5.2278,31940.0,31894.0,0.08603]
[1610380576735,0.13632608,31913.0,31894.0,0.08603]
[1610380578537,0.13632608,31913.0,31864.0,4.716]
[1610380578737,0.10444,31915.0,31864.0,4.716]
[1610380578937,0.10444,31915.0,31864.0,4.79975]
[1610380579940,0.10444,31915.0,31864.0,4.716]
[1610380580139,0.10444,31915.0,31844.0,1.0]
[1610380580738,0.13632608,31845.0,31844.0,1.0]
[1610380580944,0.22543608,31845.0,31841.0,0.13632608]
[1610380581139,0.08911,31845.0,31841.0,0.13632608]
[1610380581340,0.08911,31845.0,31821.0,1.0]
[1610380583045,0.08911,31845.0,31825.0,0.13632608]
[1610380583244,0.08911,31845.0,31812.0,1.0]
[1610380584945,0.13632608,31813.0,31810.0,0.09051]
[1610380585345,0.23474608,31813.0,31777.0,4.7864]
[1610380585946,0.09842,31813.0,31777.0,4.7864]
[1610380586546,0.09842,31813.0,31702.0,0.48101972]
[1610380586947,0.09842,31813.0,31751.0,1.0]
[1610380587347,0.13632608,31752.0,31751.0,1.0]
[1610380587948,0.09237,31762.0,31751.0,1.0]
[1610380588654,0.0311,31777.0,31751.0,1.0]
[1610380588849,0.0311,31777.0,31751.0,1.09269]
[1610380589049,0.0311,31777.0,31761.0,1.0]
[1610380589248,0.0311,31777.0,31761.0,1.10232]
[1610380589449,0.0311,31777.0,31776.0,0.13632608]
[1610380589648,0.0311,31777.0,31776.0,0.07329]
[1610380590652,0.0311,31777.0,31761.0,1.0]
[1610380590851,0.14134,31777.0,31761.0,1.0]
[1610380591052,0.14134,31777.0,31776.0,6.0]
[1610380591451,0.14134,31777.0,31776.0,6.13632608]
[1610380592051,0.0311,31777.0,31776.0,6.13632608]
[1610380592954,0.0311,31777.0,31776.0,6.0]
[1610380594659,0.0311,31777.0,31776.0,6.13632608]
[1610380594859,0.13632608,31800.0,31776.0,6.13632608]
[1610380595056,0.13632608,31800.0,31776.0,0.13632608]
[1610380595872,4.8409,31819.0,31774.0,0.07858]
[1610380596668,0.13632608,31807.0,31794.0,0.13632608]
[1610380596867,0.07828,31807.0,31774.0,0.07858]
[1610380597067,0.07828,31807.0,31804.0,5.0]
[1610380599062,0.07828,31807.0,31782.0,0.08075]
[1610380599263,0.07828,31807.0,31774.0,0.07858]
[1610380599462,0.07828,31807.0,31765.0,0.08445]
[1610380599664,0.07828,31807.0,31761.0,1.0]
[1610380601063,0.07828,31807.0,31742.0,1.0]
[1610380601764,0.13632608,31777.0,31766.0,0.13632608]
[1610380602165,0.08692,31779.0,31766.0,0.13632608]
[1610380602864,0.07828,31807.0,31766.0,0.13632608]
[1610380603068,4.8409,31819.0,31766.0,0.13632608]
[1610380603267,4.4529,31810.0,31764.0,0.09615]
[1610380603469,4.53784,31810.0,31764.0,0.09615]
[1610380603865,0.13632608,31765.0,31761.0,1.0]
[1610380604478,0.11345,31769.0,31761.0,1.0]
[1610380605085,0.11345,31769.0,31751.0,1.0]
[1610380605275,0.09583,31776.0,31754.0,0.09306]
[1610380605485,0.07918,31784.0,31754.0,0.09306]
[1610380605684,4.53784,31810.0,31754.0,0.09306]
[1610380605887,4.53784,31810.0,31809.0,0.13632608]
[1610380606087,4.4529,31810.0,31809.0,0.13632608]
[1610380606277,4.0101,31810.0,31805.0,0.11286]
[1610380606473,1.0,31878.0,31805.0,0.11286]
[1610380607075,0.295,31909.0,31811.0,1.0]
[1610380607470,3.9758,31872.0,31811.0,1.5977]
[1610380607668,3.9758,31872.0,31816.0,0.2939]
[1610380607867,3.9758,31872.0,31871.0,0.13632608]
[1610380608269,3.9758,31872.0,31849.0,0.0841]
[1610380609871,0.13632608,31852.0,31849.0,0.0841]
[1610380610471,0.13632608,31852.0,31832.0,1.0]
[1610380610878,0.22357608,31852.0,31832.0,1.0]
[1610380611072,0.09725,31852.0,31816.0,0.09832]
[1610380611873,0.13632608,31850.0,31827.0,0.13632608]
[1610380612473,0.09725,31852.0,31816.0,0.09832]
[1610380612673,0.08725,31852.0,31816.0,0.09832]
[1610380612873,0.07977,31859.0,31796.0,1.0]
[1610380613074,0.07977,31859.0,31827.0,1.0]
[1610380613274,0.07977,31859.0,31827.0,1.07804]
[1610380613675,0.07258,31866.0,31827.0,1.07804]
[1610380614275,4.2373,31868.0,31827.0,1.07804]
[1610380614476,4.2373,31868.0,31850.0,0.01]
[1610380614675,4.2373,31868.0,31850.0,0.10988]
[1610380615075,4.2373,31868.0,31867.0,0.13632608]
[1610380615275,4.2373,31868.0,31867.0,0.21791608]
[1610380615476,4.2373,31868.0,31867.0,0.08159]
[1610380616677,4.2373,31868.0,31866.0,0.01]
[1610380616879,4.34546,31868.0,31866.0,0.01]
[1610380617079,0.13632608,31867.0,31850.0,0.01]
[1610380617679,4.34546,31868.0,31850.0,0.01]
[1610380618079,0.2981,31867.0,31799.0,1.0]
[1610380618280,1.7981,31867.0,31799.0,1.0]
[1610380619284,0.13632608,31800.0,31794.0,1.0]
[1610380619485,0.24919608,31800.0,31794.0,1.0]
[1610380619686,0.24919608,31800.0,31737.0,0.48078956]
[1610380619885,0.24919608,31800.0,31734.0,1.0]
[1610380620085,0.2764,31799.0,31734.0,1.0]
[1610380621288,0.2764,31799.0,31798.0,0.13632608]
[1610380621489,0.2764,31799.0,31768.0,0.07147]
[1610380621708,0.2764,31799.0,31773.0,1.0]
[1610380623290,0.2764,31799.0,31797.0,0.13632608]
[1610380623889,1.0,31913.0,31797.0,0.13632608]
[1610380624090,1.0,31913.0,31797.0,0.20637608]
[1610380624891,4.6624,31823.0,31797.0,0.20637608]
[1610380625091,4.6624,31823.0,31797.0,0.07005]
[1610380625594,0.08389,31867.0,31822.0,6.0]
[1610380625792,0.08389,31867.0,31822.0,6.09593]
[1610380626193,0.08389,31867.0,31866.0,0.13632608]
[1610380626791,0.08389,31867.0,31848.0,0.10027]
[1610380628193,0.13632608,31849.0,31837.0,0.10171]
[1610380628394,0.20605608,31849.0,31832.0,1.0]
[1610380628594,0.06973,31849.0,31832.0,1.0]
[1610380629597,0.06973,31849.0,31798.0,0.0277]
[1610380631597,1.0,31844.0,31828.0,1.0]
[1610380633497,0.13632608,31829.0,31828.0,1.0]
[1610380633697,0.23888608,31829.0,31798.0,0.0277]
[1610380634503,1.5,31828.0,31798.0,0.0277]
[1610380635400,0.13632608,31799.0,31798.0,0.0277]
[1610380635601,0.24566608,31799.0,31798.0,0.0277]
[1610380636501,0.10934,31799.0,31798.0,0.0277]
[1610380637602,0.24566608,31799.0,31798.0,0.0277]
[1610380638003,0.10934,31799.0,31798.0,0.0277]
[1610380639505,0.10934,31799.0,31795.0,0.51456]
[1610380639704,0.13632608,31796.0,31794.0,1.0]
[1610380639905,0.13632608,31796.0,31737.0,2.24878434]
[1610380640106,0.13632608,31796.0,31735.0,2.24876185]
[1610380640506,0.13632608,31796.0,31737.0,2.25044668]
[1610380640706,0.09538,31807.0,31738.0,0.0936]
[1610380640907,3.5433,31800.0,31749.0,4.8473]
[1610380641107,3.63571,31800.0,31749.0,4.8473]
[1610380641308,0.0944,31799.0,31749.0,4.8473]
[1610380641508,0.0953,31798.0,31749.0,4.8473]
[1610380641711,3.63571,31800.0,31776.0,0.13632608]
[1610380641910,3.63571,31800.0,31776.0,0.0791]
[1610380643112,1.5,31799.0,31761.0,0.07027]
[1610380643312,0.0945,31798.0,31761.0,0.07027]
[1610380643514,0.0945,31798.0,31749.0,4.8473]
[1610380643714,0.13632608,31750.0,31749.0,4.8473]
[1610380643914,0.08222,31765.0,31749.0,4.8473]
[1610380644915,3.63571,31800.0,31749.0,4.8473]
[1610380645315,1.5,31799.0,31749.0,4.8473]
[1610380645715,0.093,31798.0,31752.0,0.13632608]
[1610380645917,1.0,31792.0,31752.0,0.13632608]
[1610380646117,1.5,31791.0,31749.0,4.8473]
[1610380646315,1.07639,31792.0,31749.0,4.8473]
[1610380647817,0.13632608,31762.0,31759.0,0.13632608]
[1610380648018,0.0831,31766.0,31749.0,4.8473]
[1610380649320,0.0943,31765.0,31749.0,4.8473]
[1610380649522,0.0831,31766.0,31749.0,4.8473]
[1610380649918,0.13632608,31750.0,31749.0,4.8473]
[1610380650119,0.13632608,31750.0,31740.0,0.13632608]
[1610380650318,0.13632608,31750.0,31737.0,0.09401]
[1610380650519,0.24136608,31750.0,31702.0,2.25261316]
[1610380650920,0.24136608,31750.0,31698.0,2.25310921]
[1610380651521,1.5,31749.0,31688.0,2.25084915]
[1610380651720,1.5,31749.0,31675.0,3.0011322]
[1610380651919,1.5,31749.0,31681.0,0.13632608]
[1610380651920,0.13632608,31689.0,31681.0,0.13632608]
[1610380652120,0.13632608,31689.0,31656.0,2.25182584]
[1610380652321,0.06906,31717.0,31656.0,2.25182584]
[1610380652520,0.06906,31717.0,31668.0,2.24748719]
[1610380652719,0.06906,31717.0,31668.0,0.08047]
[1610380653921,0.06906,31717.0,31672.0,0.13632608]
[1610380654522,0.0931,31716.0,31672.0,0.13632608]
[1610380654923,0.0931,31716.0,31668.0,0.08047]
[1610380655122,0.11103,31734.0,31668.0,0.08047]
[1610380655922,0.11103,31734.0,31733.0,0.13632608]
[1610380656122,0.11103,31734.0,31726.0,0.08001]
[1610380656323,0.06873,31739.0,31726.0,0.08001]
[1610380657923,0.13632608,31738.0,31732.0,0.13632608]
[1610380658325,0.13632608,31738.0,31718.0,0.1036]
[1610380658724,0.13632608,31738.0,31685.0,2.22871154]
[1610380658924,0.13632608,31738.0,31681.0,2.22712153]
[1610380659324,0.13632608,31738.0,31679.0,2.22719542]
[1610380659723,0.13632608,31738.0,31675.0,2.41279504]
[1610380659724,0.13632608,31738.0,31675.0,2.22527892]
[1610380659927,1.5,31737.0,31669.0,2.59615874]
[1610380660124,1.5,31737.0,31668.0,0.08047]
[1610380660324,1.5,31737.0,31667.0,2.22558385]
[1610380660724,1.5,31737.0,31666.0,4.6202]
[1610380660924,1.5,31736.0,31666.0,4.6202]
[1610380661927,0.13632608,31667.0,31666.0,4.6202]
[1610380662329,0.08808,31685.0,31656.0,0.08361]
[1610380662529,0.08808,31685.0,31655.0,0.09621]
[1610380662530,0.07362,31677.0,31655.0,0.09621]
[1610380663728,0.07362,31677.0,31622.0,2.21354696]
[1610380663928,0.07362,31677.0,31623.0,2.21341615]
[1610380664127,0.0932,31728.0,31623.0,2.30282615]
[1610380664335,0.0957,31751.0,31628.0,2.21303207]
[1610380664529,1.5,31764.0,31634.0,2.20809279]
[1610380664730,0.0945,31761.0,31634.0,2.29532279]
[1610380664928,0.093,31748.0,31643.0,2.20779446]
[1610380665130,0.095,31745.0,31643.0,2.30758446]
[1610380665329,0.0931,31764.0,31647.0,2.20593531]
[1610380665529,0.0949,31733.0,31647.0,2.20593531]
[1610380665729,0.0949,31733.0,31649.0,2.20511641]
[1610380666131,0.0949,31733.0,31648.0,2.20506263]
[1610380666531,0.0949,31733.0,31647.0,2.2029429]
[1610380666731,0.0949,31733.0,31646.0,2.20290736]
[1610380666931,0.0949,31733.0,31689.0,0.13632608]
[1610380667132,0.0948,31738.0,31657.0,0.0953]
[1610380667333,0.0956,31753.0,31657.0,0.20197]
[1610380667532,2.22780017,31811.0,31657.0,0.20197]
[1610380667933,1.0,31748.0,31657.0,0.20197]
[1610380668133,0.0957,31733.0,31657.0,0.20197]
[1610380670136,1.5957,31733.0,31657.0,0.20197]
[1610380670336,1.0,31763.0,31657.0,0.10667]
[1610380670535,1.5,31744.0,31657.0,0.10667]
[1610380670936,1.0,31763.0,31657.0,0.10667]
[1610380671238,1.0,31763.0,31658.0,0.0947]
[1610380671437,1.5,31749.0,31700.0,0.13632608]
[1610380671636,1.5,31749.0,31657.0,0.10667]
[1610380671637,1.595,31749.0,31701.0,0.0957]
[1610380671936,1.7922,31734.0,31701.0,0.0957]
[1610380672137,1.7922,31734.0,31677.0,0.07177]
[1610380672538,0.0948,31733.0,31677.0,0.07177]
[1610380673540,0.13632608,31680.0,31679.0,0.13632608]
[1610380673738,0.13632608,31680.0,31677.0,0.07177]
[1610380673938,0.13632608,31680.0,31657.0,0.10667]
[1610380674138,0.07966,31689.0,31655.0,3.857]
[1610380674340,0.07966,31689.0,31655.0,3.95297]
[1610380674938,0.2922,31734.0,31655.0,3.95297]
[1610380675541,0.0955,31761.0,31655.0,3.95297]
[1610380675740,8.9872,31814.0,31655.0,3.95297]
[1610380675741,0.13632608,31739.0,31738.0,0.13632608]
[1610380676141,0.11034,31774.0,31655.0,3.95297]
[1610380676142,0.11034,31774.0,31664.0,2.20030677]
[1610380676339,0.11034,31774.0,31664.0,2.28885677]
[1610380676539,0.11034,31774.0,31667.0,2.20512972]
[1610380676740,0.0941,31772.0,31667.0,2.20512972]
[1610380676940,1.7782,31773.0,31664.0,0.08855]
[1610380677141,4.0832,31751.0,31664.0,0.08855]
[1610380677942,4.0832,31751.0,31664.0,2.29396654]
[1610380678342,0.0752,31751.0,31669.0,5.2403]
[1610380678742,0.0752,31751.0,31669.0,7.44627648]
[1610380679142,0.0752,31751.0,31669.0,5.2403]
[1610380679641,0.0752,31751.0,31669.0,7.44704308]
[1610380680043,0.0752,31751.0,31671.0,2.206651]
[1610380680242,0.0752,31751.0,31671.0,2.303661]
[1610380680442,0.0752,31751.0,31688.0,2.20587744]
[1610380680646,4.3028,31771.0,31688.0,2.29499744]
[1610380680844,4.3028,31771.0,31688.0,0.08912]
[1610380681043,4.3028,31771.0,31768.0,0.13632608]
[1610380681443,4.3028,31771.0,31753.0,0.11335]
[1610380682244,4.3028,31771.0,31754.0,0.0952]
[1610380682446,0.09938,31792.0,31754.0,0.0952]
[1610380683046,0.09938,31792.0,31791.0,0.13632608]
[1610380683248,0.2846,31836.0,31791.0,0.13632608]
[1610380684047,0.2846,31836.0,31778.0,0.08185]
[1610380684249,0.09085,31836.0,31778.0,0.08185]
[1610380684448,0.09564,31836.0,31778.0,0.08185]
[1610380685449,0.10885,31848.0,31778.0,0.08185]
[1610380685853,0.10425,31848.0,31847.0,0.13632608]
[1610380686065,0.10425,31848.0,31831.0,0.06984]
[1610380686661,0.07292,31855.0,31831.0,0.06984]
[1610380686854,0.2822,31871.0,31831.0,0.06984]
[1610380687251,0.0933,31870.0,31831.0,0.06984]
[1610380687452,0.0779,31870.0,31831.0,0.06984]
[1610380687753,0.0779,31870.0,31841.0,0.13632608]
[1610380688355,0.0779,31870.0,31831.0,0.06984]
[1610380688555,0.0779,31870.0,31823.0,4.8321]
[1610380689354,0.03,31867.0,31823.0,4.8321]
[1610380689757,0.03,31867.0,31851.0,0.13632608]
[1610380690756,0.03,31867.0,31834.0,0.08279]
[1610380692259,0.13632608,31866.0,31860.0,0.13632608]
[1610380692659,0.13632608,31866.0,31834.0,0.08279]
[1610380694061,1.5,31865.0,31826.0,0.08212]
[1610380694262,1.5,31864.0,31826.0,0.08212]
[1610380694662,1.5,31864.0,31828.0,0.13632608]
[1610380694861,0.03,31867.0,31828.0,0.13632608]
[1610380695862,0.03,31867.0,31826.0,0.08212]
[1610380696061,0.03,31867.0,31823.0,4.8321]
[1610380696662,0.13632608,31824.0,31823.0,4.8321]
[1610380697062,1.5,31832.0,31823.0,4.8321]
[1610380697262,1.5,31832.0,31760.0,6.358]
[1610380697263,1.5,31832.0,31806.0,0.08208]
[1610380698264,1.5,31832.0,31794.0,4.5705]
[1610380698664,0.13632608,31795.0,31794.0,4.5705]
[1610380698866,1.74607608,31795.0,31794.0,4.5705]
[1610380699064,1.74607608,31795.0,31753.0,0.11335]
[1610380699263,1.74607608,31795.0,31726.0,2.20744164]
[1610380699665,1.60975,31795.0,31723.0,2.20798528]
[1610380699864,1.60975,31795.0,31717.0,2.20815461]
[1610380700464,1.60975,31795.0,31703.0,2.39360766]
[1610380700465,1.60975,31795.0,31706.0,2.20948399]
[1610380700665,1.60975,31795.0,31734.0,0.13632608]
[1610380700863,1.60975,31795.0,31693.0,2.21016945]
[1610380700864,0.0935,31794.0,31730.0,0.08715]
[1610380701865,1.0,31771.0,31730.0,0.08715]
[1610380702065,2.59157,31771.0,31730.0,0.08715]
[1610380702865,2.59157,31771.0,31681.0,2.21218311]
[1610380703066,0.0939,31770.0,31681.0,2.21218311]
[1610380703267,0.0939,31770.0,31678.0,2.2122838]
[1610380703666,0.0939,31770.0,31671.0,2.58099777]
[1610380703667,0.0939,31770.0,31677.0,2.21250827]
[1610380704068,0.0939,31770.0,31697.0,4.9717]
[1610380704266,0.0939,31770.0,31697.0,5.08289]
[1610380705369,0.0939,31770.0,31700.0,0.13632608]
[1610380705871,1.0,31753.0,31697.0,5.08289]
[1610380706071,1.10031,31753.0,31697.0,5.08289]
[1610380706872,2.60031,31753.0,31697.0,5.08289]
[1610380707973,1.60031,31753.0,31697.0,5.08289]
[1610380708185,0.10031,31753.0,31697.0,5.08289]
[1610380709182,1.60031,31753.0,31697.0,5.08289]
[1610380709373,0.13632608,31718.0,31717.0,0.13632608]
[1610380709577,0.13632608,31718.0,31697.0,5.08289]
[1610380710175,0.08815,31733.0,31697.0,5.08289]
[1610380711377,0.08815,31733.0,31732.0,0.13632608]
[1610380711576,0.08815,31733.0,31716.0,0.10988]
[1610380712779,0.08815,31733.0,31697.0,5.08289]
[1610380713477,0.13632608,31720.0,31719.0,0.13632608]
[1610380713677,0.13632608,31720.0,31697.0,5.08289]
[1610380713678,0.21161608,31720.0,31697.0,5.08289]
[1610380713879,0.07529,31720.0,31697.0,5.08289]
[1610380714678,0.07529,31720.0,31697.0,4.9717]
[1610380715479,0.13632608,31698.0,31697.0,4.9717]
[1610380715679,0.20612608,31698.0,31697.0,4.9717]
[1610380716082,0.20612608,31698.0,31639.0,0.4825871]
[1610380716481,1.5698,31698.0,31634.0,2.2161206]
[1610380717081,1.5698,31698.0,31631.0,2.21529652]
[1610380717082,0.0698,31698.0,31631.0,2.21529652]
[1610380717484,0.0698,31698.0,31690.0,0.13632608]
[1610380718084,0.07529,31720.0,31690.0,0.13632608]
[1610380718288,0.07529,31720.0,31688.0,0.08137]
[1610380718684,1.0,31741.0,31688.0,0.08137]
[1610380719587,1.0,31741.0,31724.0,0.13632608]
[1610380719985,0.0934,31749.0,31724.0,0.13632608]
[1610380719986,1.5,31740.0,31724.0,0.13632608]
[1610380720184,1.69388,31740.0,31688.0,0.08137]
[1610380721584,0.13632608,31689.0,31688.0,0.08137]
[1610380721986,1.63632608,31689.0,31688.0,0.08137]
[1610380722187,1.63632608,31689.0,31674.0,0.07522]
[1610380722385,1.63632608,31689.0,31628.0,2.21250121]
[1610380722785,1.63632608,31689.0,31616.0,2.95000162]
[1610380722786,1.63632608,31689.0,31621.0,2.21233057]
[1610380723201,0.01,31681.0,31615.0,2.21263385]
[1610380723406,0.11161,31681.0,31615.0,2.21263385]
[1610380723591,1.5,31680.0,31614.0,2.21233928]
[1610380723996,1.5,31680.0,31608.0,2.5810625]
[1610380723997,1.5,31680.0,31613.0,2.21244865]
[1610380724286,1.5955,31680.0,31612.0,2.21271679]
[1610380724689,0.0954,31679.0,31610.0,2.21207744]
[1610380725688,0.0954,31679.0,31655.0,0.13632608]
[1610380726991,0.11161,31681.0,31655.0,0.13632608]
[1610380727691,0.11161,31681.0,31666.0,0.13632608]
[1610380728492,0.01,31681.0,31666.0,0.13632608]
[1610380728893,1.0,31699.0,31666.0,0.13632608]
[1610380729494,1.0,31699.0,31660.0,0.10397]
[1610380729894,4.2727,31707.0,31698.0,0.13632608]
[1610380730094,4.2727,31707.0,31698.0,0.22311608]
[1610380730496,4.2727,31707.0,31698.0,0.08679]
[1610380731195,0.11369,31727.0,31698.0,0.08679]
[1610380731596,0.03,31747.0,31698.0,0.08679]
[1610380732397,0.03,31747.0,31746.0,0.13632608]
[1610380732798,0.03,31747.0,31728.0,0.07692]
[1610380734398,0.03,31747.0,31746.0,0.13632608]
[1610380734599,0.03,31747.0,31746.0,0.23650608]
[1610380735600,0.03,31747.0,31746.0,0.10018]
[1610380736003,0.03,31747.0,31728.0,0.07692]
[1610380736400,0.06,31747.0,31728.0,0.07692]
[1610380737708,0.06,31747.0,31742.0,0.13632608]
[1610380738103,0.06,31747.0,31723.0,0.09094]
[1610380739104,0.06,31747.0,31698.0,0.08679]
[1610380739304,0.06,31747.0,31667.0,2.20520134]
[1610380739703,0.06,31747.0,31665.0,2.2057388]
[1610380739903,1.06,31747.0,31665.0,2.2057388]
[1610380740107,1.06,31747.0,31660.0,2.31002624]
[1610380740505,1.06,31747.0,31660.0,0.10397]
[1610380740706,0.01,31723.0,31657.0,2.20789303]
[1610380741105,0.01,31723.0,31656.0,2.20703494]
[1610380741309,0.01,31723.0,31651.0,2.20695686]
[1610380741706,0.0177,31667.0,31645.0,2.20653445]
[1610380742305,0.0177,31667.0,31641.0,2.20690079]